[Event "9. Korbacher Open 2017"]
[Site "Korbach"]
[Date "2017.10.20"]
[Round "2"]
[White "Duzy, Stefan"]
[Black "Sanati, Charlotte"]
[Result "0-1"]
[ECO "A30"]
[WhiteElo "1935"]
[BlackElo "2098"]
[Annotator "NA RC"]
[PlyCount "64"]
[EventDate "2017.??.??"]
[EventType "swiss"]
[EventCountry "GER"]
[SourceTitle "playchess.com"]
[Source "ChessBase"]
[SourceQuality "1"]
[TimeControl "40/5400+30:1800+30"]

{[%evp 8,63,64,32,73,26,57,43,63,56,54,8,3,24,47,40,31,36,50,23,21,20,41,37,52,55,67,56,125,119,109,13,0,10,22,-1,10,-8,-34,-28,12,-44,-19,-47,-25,-53,0,-95,-81,-76,-86,-175,-185,-160,-166,-179,-179,-351]} 1. c4 {[%emt 0:00:00]} c5 {[%emt 0:00:43]} 2. e3 {[%emt 0:01:32]} g6 {[%emt 0:02:33]} 3. Nc3 {[%emt 0:01:36]} Bg7 {[%emt 0:01:17]} 4. d4 {[%emt 0:00:15]} b6 {[%emt 0:09:50]} (4... cxd4 $11 5. exd4 Nf6) 5. Nf3 {[%emt 0:21:14]} Bb7 {[%emt 0:01:45]} 6. Be2 {[%emt 0:06:33]} Nf6 {[%emt 0:01:14]} 7. O-O {[%emt 0:00:17]} O-O {[%emt 0:00:42]} 8. d5 {[%emt 0:03:57]} d6 {[%emt 0:02:43] LiveBook: 14 Games E61: King's Indian: Early deviations for White, including Smyslov System} 9. Nd2 {[%emt 0:10:52]} (9. Re1 $14) (9. e4 e5 10. a3 h6 11. Bd2 Nbd7 12. Qc1 Kh7 13. Ne1 Qe7 14. b4 Rac8 15. Qb1 Rb8 16. Ra2 Ne8 17. Bd3 {1-0 (51) Kovalenko,I (2684)-Brodowski,P (2444) Tallinn 2016}) 9... e6 {[%emt 0:10:59]} 10. e4 {[%emt 0:03:06]} Qe7 $146 {[%emt 0:05:48]} ({Predecessor:} 10... exd5 11. cxd5 a6 12. a4 Re8 13. f3 Nbd7 14. f4 c4 15. Nxc4 Nc5 16. Nxd6 Qxd6 17. e5 Qd8 18. exf6 Qxf6 19. f5 Qd4+ 20. Kh1 {½-½ (20) Szamos,A (2192)-Macko,M (2167) Slovakia 2015}) 11. Re1 {[%emt 0:08:25]} Na6 {[%emt 0:08:20]} 12. Nf1 {[%emt 0:06:24]} Rfe8 {[%emt 0:05:56]} 13. Bd2 {[%emt 0:02:40]} Nd7 {[%emt 0:05:59]} 14. Ne3 {[%emt 0:11:07]} Rf8 {[%emt 0:02:31]} 15. f4 {[%emt 0:02:30]} Bd4 {[%emt 0:04:46]} 16. Kh1 {[%emt 0:03:00]} Rae8 {[%emt 0:04:20]} 17. Bf3 {[%emt 0:02:23]} Nb4 {[%emt 0:01:47] [#]} (17... Rb8 $14) 18. Qb1 $1 {[%emt 0:01:20]} exd5 {[%emt 0:06:43]} 19. Nexd5 {[%emt 0:02:31]} (19. exd5 $16 h5 20. a3) 19... Nxd5 {[%emt 0:01:36]} 20. exd5 {[%emt 0:00:23]} Qd8 {[%emt 0:03:37]} 21. Qd3 {[%emt 0:02:51]} a6 {[%emt 0:04:16]} 22. Rxe8 {[%emt 0:00:30]} Rxe8 23. Re1 {[%emt 0:00:16]} Nf6 {[%emt 0:01:19]} 24. b3 {[%emt 0:01:39]} Bc8 {[%emt 0:00:45]} 25. Rxe8+ {[%emt 0:01:24]} Qxe8 {[%emt 0:00:58]} 26. Ne4 {[%emt 0:01:42]} Bf5 {[%emt 0:01:38]} 27. Nxf6+ {[%emt 0:00:08]} (27. Qxd4 $1 $11 Qxe4 28. Qxe4 (28. Bxe4 cxd4 29. Bxf5 gxf5 $14) 28... Bxe4 29. Bxe4 Nxe4 30. Be1) 27... Bxf6 {[%emt 0:00:04]} 28. Qf1 $1 {[%emt 0:01:07]} h5 {[%emt 0:00:28]} 29. Be2 {[%emt 0:01:06]} (29. h3 $17) 29... Qe4 {[%emt 0:00:23]} 30. Qd1 {[%emt 0:02:34]} Bd4 {[%emt 0:01:38]} 31. Bf3 {[%emt 0:00:06]} Qb1 {[%emt 0:02:39]} 32. a4 $19 {[%emt 0:00:02]} (32. Qxb1 Bxb1 33. a4) 32... Qa2 {[%emt 0:01:46]} 0-1

[Event "9. Korbacher Open 2017"]
[Site "Korbach"]
[Date "2017.10.20"]
[Round "2"]
[White "Wachsmann, Dietmar"]
[Black "Nielsen, Klaus"]
[Result "0-1"]
[ECO "B01"]
[WhiteElo "1930"]
[BlackElo "2092"]
[Annotator "NA RC"]
[PlyCount "71"]
[EventDate "2017.??.??"]
[EventType "swiss"]
[EventCountry "GER"]
[SourceTitle "playchess.com"]
[Source "ChessBase"]
[SourceQuality "1"]
[TimeControl "40/5400+30:1800+30"]

{[%evp 8,71,57,33,68,39,64,8,25,0,21,11,47,40,78,62,58,32,44,19,23,9,18,0,0,5,22,2,24,32767,32767,-22,34,57,91,102,87,106,81,79,154,169,226,245,245,264,236,223,279,68,72,-55,-31,-82,47,8,25,40,40,-61,67,15,82,38,96,0]} 1. e4 {[%emt 0:00:00]} d5 {[%emt 0:00:16]} 2. exd5 {[%emt 0:00:00]} Qxd5 {[%emt 0:00:06]} 3. Nf3 {[%emt 0:00:20]} Nf6 {[%emt 0:00:38]} 4. d4 {[%emt 0:00:52]} Bg4 {[%emt 0:04:12]} 5. Be2 {[%emt 0:01:06]} e6 {[%emt 0:03:12]} ({Of course not} 5... Bxf3 6. Bxf3 Qe6+ 7. Be3 $16) 6. c4 {[%emt 0:02:07] LiveBook: 19 Games B01: Scandinavian Defence} (6. h3 Bh5 7. c4 Qd8 8. Qb3 Qc8 9. Nc3 Nbd7 10. Be3 Be7 11. g4 Bg6 12. O-O-O c6 13. Nh4 Qc7 14. Nxg6 hxg6 {0-1 (52) Morozevich,A (2683)-Seliverstov,V (2455) Moscow 2016}) 6... Bb4+ {[%emt 0:01:40]} 7. Bd2 {[%emt 0:05:50]} (7. Nc3 $14 Qf5 8. h3 Bxf3 9. Bxf3) 7... Bxd2+ {[%emt 0:01:06]} 8. Qxd2 {[%emt 0:02:02]} Qd6 {[%emt 0:01:04]} 9. Nc3 {[%emt 0:04:29]} c6 {[%emt 0:00:36]} 10. h3 $146 {[%emt 0:05:44]} ({Predecessor:} 10. O-O Nbd7 11. Rad1 O-O 12. Rfe1 Rad8 13. h3 Bxf3 14. Bxf3 {1-0 (39) Fowler,D (1867)-Neatherway,A (1870) England 2014}) 10... Bf5 {[%emt 0:02:43]} 11. O-O {[%emt 0:04:11]} Nbd7 {[%emt 0:00:56]} 12. Rfd1 {[%emt 0:06:22]} O-O {[%emt 0:01:04]} 13. Nh4 {[%emt 0:07:56]} Ne4 {[%emt 0:03:19]} 14. Nxf5 {[%emt 0:03:03]} exf5 {[%emt 0:00:08]} 15. Qc2 {[%emt 0:01:29]} Rae8 {[%emt 0:03:19]} 16. Bf3 {[%emt 0:04:18]} Ndf6 {[%emt 0:03:01]} 17. d5 {[%emt 0:04:13]} Qf4 {[%emt 0:03:16]} 18. c5 {[%emt 0:06:03]} Ng5 {[%emt 0:12:45]} 19. Rd3 {[%emt 0:05:14]} Nfe4 {[%emt 0:03:11]} (19... Nd7 $15 20. Ne2 Qb4) 20. b4 {[%emt 0:03:16]} Nxc3 {[%emt 0:16:23]} (20... a5 $11) 21. Qxc3 {[%emt 0:03:43]} cxd5 {[%emt 0:03:59]} 22. Bxd5 {[%emt 0:00:44]} Re2 {[%emt 0:01:08]} 23. Qd4 {[%emt 0:01:47]} Ne4 {[%emt 0:05:23]} ({Black should try} 23... Qxd4 24. Rxd4 Re7) 24. Rf3 {[%emt 0:01:21]} Qg5 {[%emt 0:05:24]} 25. Rd1 {[%emt 0:02:03]} ({Resist} 25. Bxb7 $6 Qe7 $18) 25... g6 {[%emt 0:09:37]} 26. Bxb7 {[%emt 0:02:28]} Qe7 {[%emt 0:07:29]} 27. c6 {[%emt 0:05:22]} Rxa2 {[%emt 0:03:23] [#]} 28. b5 $2 {[%emt 0:10:48]} ({Only move:} 28. Qc4 $1 $18 {[%cal Rc4a2]} Rd2 29. Rd3 Rxd3 30. Rxd3) 28... Qc7 {[%emt 0:00:44]} 29. Qd7 {[%emt 0:03:51]} Qb6 $1 {[%emt 0:00:20]} 30. Qd4 {[%emt 0:01:17]} (30. Qd5 $11 Rb2 31. Qd4 Qxb5 32. Qxa7) 30... Qc7 {[%emt 0:00:13]} (30... Qxb5 $15 31. Qd3 Qb2) 31. Qd5 {[%emt 0:02:07]} Rc2 {[%emt 0:00:22]} 32. Qd3 {[%emt 0:00:30]} Rc5 {[%emt 0:00:32]} 33. Qd4 {[%emt 0:00:25]} (33. Ba6 $11) 33... Qb6 {[%emt 0:00:48]} ({Black should try} 33... Rxb5 $15 34. Ra3 a5) 34. Rb3 {[%emt 0:00:29]} (34. Ba6 $16) 34... Rc1 {[%emt 0:00:51]} (34... Re8 $11 {remains equal.}) 35. Rbd3 {[%emt 0:00:36]} Rc5 $16 {[%emt 0:00:48] [#]} 36. Rb3 {[%emt 0:00:14]} (36. Ba6 $1 $16) 0-1

[Event "9. Korbacher Open 2017"]
[Site "Korbach"]
[Date "2017.10.20"]
[Round "2"]
[White "Petras, Nils"]
[Black "Rehbein, Ullrich"]
[Result "1/2-1/2"]
[ECO "A38"]
[WhiteElo "1922"]
[BlackElo "1778"]
[Annotator "NA RC"]
[PlyCount "50"]
[EventDate "2017.??.??"]
[EventType "swiss"]
[EventCountry "GER"]
[SourceTitle "playchess.com"]
[Source "ChessBase"]
[SourceQuality "1"]
[TimeControl "40/5400+30:1800+30"]

{[%evp 8,50,12,0,24,20,31,0,0,-21,-35,-41,-33,-64,17,-5,-15,0,-8,-23,-10,-20,18,-14,53,-33,-22,32767,32767,32767,30,7,0,0,0,32767,32767,32767,32767,14,264,284,244,97,152]} 1. Nf3 {[%emt 0:01:20]} c5 {[%emt 0:02:52]} 2. g3 {[%emt 0:00:35]} Nc6 {[%emt 0:00:02]} 3. c4 {[%emt 0:01:28]} g6 {[%emt 0:02:42]} 4. Bg2 {[%emt 0:01:08]} Bg7 {[%emt 0:00:11]} 5. O-O {[%emt 0:01:08]} Nf6 {[%emt 0:02:15]} 6. Nc3 {[%emt 0:00:19]} O-O {[%emt 0:00:11]} 7. b3 {[%emt 0:04:47]} d5 {[%emt 0:03:48]} 8. cxd5 {[%emt 0:01:11]} Nxd5 {[%emt 0:02:47]} 9. Bb2 {[%emt 0:00:11] LiveBook: 8 Games} Rb8 {[%emt 0:07:15] A38: Symmetrical English vs ...g6: 4 Bg2 Bg7 5 Nf3 Nf6} (9... Nxc3 10. Bxc3 Bxc3 11. dxc3 Bf5 12. Qxd8 Rfxd8 13. Rfd1 Rxd1+ 14. Rxd1 Rd8 15. Rxd8+ Nxd8 16. Kf1 Be4 17. Ke1 Kf8 18. Kd2 f6 19. Ne1 Bxg2 20. Nxg2 {½-½ (20) Zlatilov,I (2332)-Kukov,V (2357) Bosilegrad 2009}) 10. a3 $146 {[%emt 0:05:16]} ({Predecessor:} 10. Rc1 h6 11. Na4 b6 12. Bxg7 Kxg7 13. d4 Be6 14. dxc5 b5 15. Nc3 Nxc3 16. Rxc3 Qa5 17. Rc2 {0-1 (59) Gelsok,P (1728)-Kohler,O (1992) Bad Godesberg 2013}) 10... f5 {[%emt 0:06:13]} 11. Qc2 {[%emt 0:02:21]} (11. b4 $5) 11... Nxc3 {[%emt 0:11:48]} 12. Bxc3 {[%emt 0:01:35]} Nd4 {[%emt 0:01:13]} 13. Bxd4 {[%emt 0:06:41]} cxd4 {[%emt 0:01:28]} 14. Qc4+ {[%emt 0:02:40]} e6 {[%emt 0:02:13]} 15. d3 {[%emt 0:00:46]} b5 {[%emt 0:02:53]} (15... Rf7 $11) 16. Qc1 {[%emt 0:03:22]} (16. Qc5 $14) 16... e5 {[%emt 0:04:57]} 17. Qc5 {[%emt 0:03:38]} Qb6 {[%emt 0:05:14]} 18. Rac1 {[%emt 0:03:10]} e4 {[%emt 0:08:06]} 19. dxe4 {[%emt 0:01:56]} fxe4 {[%emt 0:01:31]} 20. Ng5 {[%emt 0:01:56]} Qxc5 {[%emt 0:05:17]} 21. Rxc5 {[%emt 0:00:08]} e3 {[%emt 0:01:06]} 22. Bd5+ {[%emt 0:02:30]} Kh8 {[%emt 0:01:29] [#]} 23. Nf7+ $2 {[%emt 0:01:57]} (23. fxe3 $1 $18 Bf5 24. Nf7+ Rxf7 25. Bxf7) 23... Kg8 $2 {[%emt 0:02:19]} (23... Rxf7 $1 $11 24. Bxf7 Bh3) 24. fxe3 {[%emt 0:00:11]} Bb7 {[%emt 0:04:27] [#]} 25. Nh6+ {[%emt 0:23:26]} (25. Be6 $1 $18) 25... Kh8 $16 1/2-1/2

[Event "9. Korbacher Open 2017"]
[Site "Korbach"]
[Date "2017.10.20"]
[Round "2"]
[White "Wuestehube, Harry"]
[Black "Deutsch, Christoph"]
[Result "1/2-1/2"]
[ECO "C65"]
[WhiteElo "1906"]
[BlackElo "1755"]
[Annotator "NA RC"]
[PlyCount "71"]
[EventDate "2017.??.??"]
[EventType "swiss"]
[EventCountry "GER"]
[SourceTitle "playchess.com"]
[Source "ChessBase"]
[SourceQuality "1"]
[TimeControl "40/5400+30:1800+30"]

{[%evp 8,71,20,8,23,26,23,18,6,20,25,24,21,29,31,40,56,29,47,31,34,22,42,45,52,25,39,37,42,44,32767,32767,32767,32767,32767,25,26,25,34,29,21,18,40,26,42,47,59,59,135,27,36,35,162,41,29,27,50,21,39,43,46,30,48,0,44,34]} 1. e4 {[%emt 0:00:00]} e5 {[%emt 0:00:21]} 2. Nf3 {[%emt 0:00:00]} Nc6 {[%emt 0:00:28]} 3. Bb5 {[%emt 0:00:00]} Nf6 {[%emt 0:00:25]} 4. d3 {[%emt 0:00:43]} d6 {[%emt 0:00:42]} 5. h3 {[%emt 0:04:54]} Be7 {[%emt 0:01:14]} 6. c3 {[%emt 0:00:39]} O-O {[%emt 0:02:00]} 7. O-O {[%emt 0:00:13]} a6 {[%emt 0:02:00]} 8. Ba4 {[%emt 0:00:15]} b5 {[%emt 0:01:13]} 9. Bc2 {[%emt 0:00:17]} Re8 {[%emt 0:01:01] C77: Ruy Lopez: 3...a6 4 Ba4 Nf6, unusual lines} 10. Re1 {[%emt 0:04:28] LiveBook: 7 Games} h6 {[%emt 0:02:24]} 11. Nbd2 {[%emt 0:01:11]} Bf8 {[%emt 0:01:00]} 12. Nf1 {[%emt 0:01:44]} (12. a4 b4 13. a5 Rb8 14. Nc4 g6 15. Bd2 bxc3 16. bxc3 Bg7 17. d4 exd4 18. cxd4 Nb4 19. Bb1 {1-0 (34) Nepomniachtchi,I (2742)-Inarkiev,E (2707) Geneve 2017}) 12... Ne7 {[%emt 0:01:32]} 13. Ng3 {[%emt 0:06:13]} Ng6 {[%emt 0:02:25]} 14. a4 {[%emt 0:03:36]} Bd7 {[%emt 0:03:11]} 15. d4 {[%emt 0:05:09]} c5 {[%emt 0:04:04]} 16. d5 $146 {[%emt 0:07:54]} ({Predecessor:} 16. dxc5 dxc5 17. axb5 axb5 18. Rxa8 Qxa8 19. Nf5 {½-½ (34) Vasek,V-Albertovic,L Morava 1996}) 16... Qc7 {[%emt 0:05:43]} 17. Be3 {[%emt 0:03:11]} Rec8 {[%emt 0:04:13]} 18. Qd2 {[%emt 0:01:31]} Rab8 {[%emt 0:15:29]} 19. axb5 {[%emt 0:01:37]} axb5 {[%emt 0:00:27]} 20. Rec1 {[%emt 0:07:29]} b4 {[%emt 0:02:49]} 21. Ba4 {[%emt 0:08:30]} bxc3 {[%emt 0:06:37]} 22. bxc3 {[%emt 0:00:51]} Ra8 {[%emt 0:00:35]} 23. Bxd7 {[%emt 0:01:14]} Qxd7 {[%emt 0:00:52]} 24. Qc2 {[%emt 0:03:53]} Rcb8 {[%emt 0:05:05]} 25. c4 {[%emt 0:05:12]} Kh7 {[%emt 0:02:24]} 26. Ne2 {[%emt 0:05:44]} Ne7 {[%emt 0:04:54]} 27. Nc3 {[%emt 0:00:25]} Nc8 {[%emt 0:00:43] [#]} (27... Kg8 $14) 28. Rxa8 {[%emt 0:04:10]} (28. Bxc5 $1 $16 Qc7 29. Nxe5 dxe5 30. Bxf8) 28... Rxa8 {[%emt 0:00:16]} 29. Rb1 {[%emt 0:01:02]} Na7 {[%emt 0:01:16]} (29... Ra6 $11) 30. Qb3 {[%emt 0:04:04]} (30. Qa2 $16) 30... Nc8 {[%emt 0:02:02]} 31. Nd2 {[%emt 0:03:38]} Qa7 {[%emt 0:01:48]} 32. Qb7 {[%emt 0:04:12]} Nd7 {[%emt 0:01:30]} 33. Qc6 {[%emt 0:04:42]} Ndb6 {[%emt 0:03:25]} 34. Nb5 {[%emt 0:04:11]} Qe7 {[%emt 0:01:38]} 35. Nc3 {[%emt 0:01:53]} Qa7 $14 36. Qe8 1/2-1/2

[Event "9. Korbacher Open 2017"]
[Site "Korbach"]
[Date "2017.10.20"]
[Round "2"]
[White "Goetz, Jan"]
[Black "Naujocks, Christian"]
[Result "1-0"]
[ECO "D53"]
[WhiteElo "1890"]
[BlackElo "1654"]
[Annotator "NA RC"]
[PlyCount "51"]
[EventDate "2017.??.??"]
[EventType "swiss"]
[EventCountry "GER"]
[SourceTitle "playchess.com"]
[Source "ChessBase"]
[SourceQuality "1"]
[TimeControl "40/5400+30:1800+30"]

{[%evp 8,51,15,10,19,17,14,14,12,15,27,29,62,30,23,29,58,47,56,56,55,43,69,49,33,25,18,32767,32767,32767,32767,32767,32,3,32767,-3,34,17,337,346,29992,29993,29993,29994,29996,29995]} 1. d4 {[%emt 0:00:00]} d5 {[%emt 0:00:30]} 2. c4 {[%emt 0:00:30]} e6 {[%emt 0:00:30]} 3. Nc3 {[%emt 0:00:30]} Nf6 {[%emt 0:00:34]} 4. Bg5 {[%emt 0:00:00]} Be7 {[%emt 0:00:20]} 5. e3 {[%emt 0:02:27]} O-O {[%emt 0:00:37]} 6. cxd5 {[%emt 0:00:16]} exd5 {[%emt 0:00:32]} 7. Bd3 {[%emt 0:00:36]} h6 {[%emt 0:00:36] LiveBook: 120 Games} 8. Bh4 {[%emt 0:00:29]} Be6 {[%emt 0:00:22]} 9. Nge2 {[%emt 0:00:27] D35: Queen's Gambit Declined: Exchange Variation} Nbd7 {[%emt 0:02:52]} (9... c5 10. dxc5 Bxc5 11. O-O Nc6 12. Nf4 Bd6 13. Bxf6 Qxf6 14. Ncxd5 Bxd5 15. Nxd5 Qxb2 16. Rb1 Qxa2 17. Rxb7 {1-0 (30) Sasikiran,K (2652)-Bacrot,E (2729) Corsica 2005}) 10. Qc2 {[%emt 0:00:45]} Nb6 {[%emt 0:01:13]} 11. Nf4 {[%emt 0:07:30]} Rc8 {[%emt 0:04:57]} 12. O-O {[%emt 0:11:26]} c5 $146 {[%emt 0:04:57]} ({Predecessor:} 12... Ng4 13. Bxe7 Qxe7 14. Qe2 Qd6 15. Nb5 Qe7 16. Nxa7 {1-0 (52) Conrad,E (1534)-Trienens,T (1460) Homburg 2010}) 13. dxc5 {[%emt 0:01:31]} Rxc5 {[%emt 0:05:40]} 14. Qb3 {[%emt 0:07:37]} a6 {[%emt 0:14:04]} 15. Rfd1 {[%emt 0:02:19]} Qc7 {[%emt 0:04:07]} 16. Be2 {[%emt 0:03:45]} g5 {[%emt 0:09:41]} 17. Nxe6 {[%emt 0:01:10]} fxe6 {[%emt 0:00:11]} 18. Bg3 {[%emt 0:00:15]} Bd6 {[%emt 0:04:18]} 19. Bxd6 {[%emt 0:01:36]} Qxd6 {[%emt 0:00:11]} 20. Rd2 {[%emt 0:00:43]} Qc7 {[%emt 0:05:37]} 21. Rad1 {[%emt 0:06:51]} Nbd7 {[%emt 0:03:06]} 22. e4 {[%emt 0:05:09]} Nxe4 $2 {[%emt 0:08:32]} ({Black should try} 22... Rxc3 $14 23. Qxc3 Qxc3 24. bxc3 Nxe4) 23. Nxe4 {[%emt 0:00:16]} dxe4 $2 {[%emt 0:01:59]} (23... Rc6 $18 24. Qh3 Kg7) 24. Qxe6+ {[%emt 0:00:15]} Kh8 {[%emt 0:01:13]} 25. Rxd7 {[%emt 0:00:02]} Rc6 {[%emt 0:01:38]} 26. Qxe4 {[%emt 0:01:02]} 1-0

[Event "9. Korbacher Open 2017"]
[Site "Korbach"]
[Date "2017.10.20"]
[Round "2"]
[White "Launert, Martin"]
[Black "Stahnke, Thorsten"]
[Result "1-0"]
[ECO "B34"]
[WhiteElo "1879"]
[BlackElo "2026"]
[Annotator "NA RC"]
[PlyCount "47"]
[EventDate "2017.??.??"]
[EventType "swiss"]
[EventCountry "GER"]
[SourceTitle "playchess.com"]
[Source "ChessBase"]
[SourceQuality "1"]
[TimeControl "40/5400+30:1800+30"]

{[%evp 8,47,10,1,10,-13,-14,-13,28,-29,8,304,4,-30,-16,-52,-16,-26,39,-10,0,-31,-13,-41,32767,32767,32767,35,32767,187,32767,32767,32767,339,500,568,575,642,777,789,2095,2339]} 1. e4 {[%emt 0:00:00]} c5 {[%emt 0:00:16]} 2. Nf3 {[%emt 0:00:00]} Nc6 {[%emt 0:00:17]} 3. d4 {[%emt 0:00:00]} cxd4 {[%emt 0:00:08]} 4. Nxd4 {[%emt 0:00:00]} g6 {[%emt 0:00:15]} 5. Nxc6 {[%emt 0:01:59]} bxc6 {[%emt 0:00:10]} 6. Qd4 {[%emt 0:00:15]} Nf6 {[%emt 0:00:14] LiveBook: 43 Games} 7. e5 {[%emt 0:01:25]} Ng8 {[%emt 0:00:08]} 8. e6 {[%emt 0:01:25]} Nf6 $1 {[%emt 0:00:17]} 9. exf7+ {[%emt 0:01:05]} Kxf7 {[%emt 0:00:09]} 10. Be2 {[%emt 0:08:07] B34: Sicilian: Accelerated Dragon with 5 Nc3: sidelines} Bg7 {[%emt 0:01:17]} 11. Qh4 {[%emt 0:07:47]} Qb6 {[%emt 0:04:30]} 12. O-O {[%emt 0:05:25]} e5 $146 {[%emt 0:03:06]} ({Predecessor:} 12... d5 $11 13. Nd2 Bf5 14. Nf3 Rhe8 15. b3 e5 16. Bb2 Qc7 17. Bd3 e4 {½-½ (42) Bakhtadze,G (2384)-Popov,V (2582) Tula 1999}) 13. b3 {[%emt 0:03:18]} d5 {[%emt 0:01:22]} 14. Bh6 {[%emt 0:05:01]} Bf5 {[%emt 0:02:59]} 15. c4 {[%emt 0:14:50]} Bxh6 {[%emt 0:28:07]} 16. Qxh6 {[%emt 0:00:04]} Bxb1 {[%emt 0:01:49]} 17. Raxb1 {[%emt 0:01:37]} d4 {[%emt 0:00:31] [#]} 18. b4 $1 {[%emt 0:08:35]} Rad8 {[%emt 0:06:51]} 19. c5 {[%emt 0:01:37]} Qc7 {[%emt 0:01:15]} 20. Bc4+ {[%emt 0:00:34]} Nd5 {[%emt 0:00:10]} 21. f4 {[%emt 0:01:26]} Ke8 {[%emt 0:14:08]} 22. fxe5 {[%emt 0:02:53]} Ne3 {[%emt 0:00:22]} 23. Bf7+ {[%emt 0:04:41]} Kd7 {[%emt 0:00:57]} 24. Qh3+ $18 {[%emt 0:02:23]} 1-0

[Event "9. Korbacher Open 2017"]
[Site "Korbach"]
[Date "2017.10.20"]
[Round "2"]
[White "Trienekens, Tjark"]
[Black "Sakhra, Roman"]
[Result "1-0"]
[ECO "C54"]
[WhiteElo "1865"]
[BlackElo "1489"]
[Annotator "NA RC"]
[PlyCount "51"]
[EventDate "2017.??.??"]
[EventType "swiss"]
[EventCountry "GER"]
[SourceTitle "playchess.com"]
[Source "ChessBase"]
[SourceQuality "1"]
[TimeControl "40/5400+30:1800+30"]

{[%evp 8,51,12,21,42,28,40,-17,-6,-10,74,85,93,104,143,115,159,162,222,32767,32767,108,113,3,4,0,1,0,29,0,513,524,509,513,993,1187,1039,972,1781,1754,1488,1257,1208,1365,1085,1552]} 1. e4 {[%emt 0:02:48]} e5 {[%emt 0:00:04]} 2. Nf3 {[%emt 0:00:15]} Nc6 {[%emt 0:00:03]} 3. Bc4 {[%emt 0:00:11]} Bc5 {[%emt 0:00:12]} 4. c3 {[%emt 0:00:19]} Nf6 {[%emt 0:00:06]} 5. d3 {[%emt 0:00:08]} h6 {[%emt 0:01:11]} 6. b4 {[%emt 0:06:09]} Bb6 {[%emt 0:00:15]} 7. b5 {[%emt 0:01:15]} Na5 $1 {[%emt 0:18:37] C54: Giuoco Piano: 4 c3 Nf6, main lines with 5 d4 and 5 d3} 8. Nxe5 {[%emt 0:03:37]} Nxc4 {[%emt 0:00:30]} (8... O-O $11 {keeps the balance.}) (8... d5 9. exd5 Nxc4 10. Nxc4 Qxd5 11. O-O Qxb5 12. a4 Qd5 13. Re1+ Be6 14. a5 Bc5 15. Re5 Qc6 16. a6 b6 17. Ba3 {½-½ (17) Biti,O (2370)-Hodak,S (2169) Bosnjaci 2011}) 9. Nxc4 {[%emt 0:00:23]} d6 {[%emt 0:00:36]} 10. O-O {[%emt 0:03:35]} Be6 {[%emt 0:01:24]} 11. Nbd2 {[%emt 0:03:50]} Ng4 $146 {[%emt 0:05:14]} ({Predecessor:} 11... O-O 12. Qf3 Re8 13. Re1 Qd7 14. Nxb6 axb6 15. c4 {1-0 (26) Sokolova,E-Bogdanova,M Russia 2004}) 12. d4 {[%emt 0:08:57]} Qh4 {[%emt 0:19:56]} 13. Nf3 {[%emt 0:17:43]} Qh5 {[%emt 0:04:45]} 14. Nxb6 {[%emt 0:05:33]} axb6 {[%emt 0:00:57]} 15. e5 {[%emt 0:00:32]} (15. Re1 $16) 15... dxe5 {[%emt 0:01:50]} 16. h3 {[%emt 0:02:32]} Nf6 {[%emt 0:01:50]} 17. dxe5 {[%emt 0:01:14]} Nd7 {[%emt 0:01:16]} 18. Re1 {[%emt 0:05:54]} (18. Nd4 $14 Qxe5 19. Re1) 18... Rxa2 $2 {[%emt 0:10:35]} (18... O-O $11 {and Black stays safe.}) 19. Rxa2 {[%emt 0:01:54]} Bxa2 20. Qa4 {[%emt 0:01:56]} Bd5 {[%emt 0:11:25]} 21. Qa8+ {[%emt 0:03:36]} Ke7 {[%emt 0:00:13]} 22. Qxh8 {[%emt 0:00:28]} Qg6 {[%emt 0:02:38]} 23. Nh4 {[%emt 0:11:40]} Qh5 {[%emt 0:00:16]} 24. e6 {[%emt 0:00:25]} Bxe6 25. Ba3+ {[%emt 0:01:11]} Nc5 {[%emt 0:10:32]} 26. Nf3 $18 {[%emt 0:01:01]} 1-0